bitfinex/quotes_ETHUSD_20220123
["timestamp","ask_amount","ask_price","bid_price","bid_amount"]
[1642896002386,0.00113684,2414.9,2414.4,0.02137209]
[1642896002582,0.00113684,2414.9,2413.7,0.1656]
[1642896002785,0.00113684,2414.9,2413.8,3.5251412]
[1642896002984,0.00113684,2414.9,2413.9,0.1656]
[1642896003184,0.00113684,2414.9,2414.0,3.5251412]
[1642896003385,1.3035507,2414.6,2414.0,3.5251412]
[1642896003883,1.3035507,2414.6,2414.3,0.02137209]
[1642896004082,1.3035507,2414.6,2413.7,0.1656]
[1642896004284,1.3035507,2414.6,2413.8,3.52516538]
[1642896004988,1.2535507,2414.6,2414.0,1.26092451]
[1642896005184,1.2535507,2414.6,2414.1,3.52516538]
[1642896005384,1.2535507,2414.6,2413.7,1.41900516]
[1642896005584,1.2535507,2414.6,2413.8,3.52511905]
[1642896006338,1.2535507,2414.6,2413.9,0.00454739]
[1642896006542,1.2535507,2414.6,2413.9,0.17014739]
[1642896006738,0.1656,2414.5,2413.9,0.00454739]
[1642896007038,1.2535507,2414.6,2414.2,0.02137209]
[1642896007443,1.2535507,2414.6,2414.3,0.0022737]
[1642896007839,1.2535507,2414.6,2413.8,0.00511581]
[1642896008038,1.2535507,2414.6,2414.0,0.00397897]
[1642896008239,1.2535507,2414.6,2414.0,3.52480937]
[1642896008438,1.2535507,2414.6,2414.0,0.00397897]
[1642896008643,1.1656,2415.2,2414.3,0.02137209]
[1642896008644,0.1656,2415.2,2414.3,0.02137209]
[1642896008840,3.9718,2415.4,2414.4,1.55624684]
[1642896009039,0.1656,2415.5,2414.4,0.00170527]
[1642896009040,0.00227369,2415.1,2414.4,0.00170527]
[1642896009239,0.00227369,2415.1,2414.5,0.00113685]
[1642896009240,0.1656,2415.0,2414.5,0.00113685]
[1642896009583,0.1656,2415.0,2414.4,0.00170527]
[1642896009584,0.00113684,2414.9,2414.4,0.00170527]
[1642896009784,1.20730625,2414.8,2414.4,0.00170527]
[1642896010187,1.20730625,2414.8,2414.6,0.02137209]
[1642896010488,1.20730625,2414.8,2414.1,0.00341054]
[1642896010890,1.20730625,2414.8,2414.0,3.52857751]
[1642896011096,1.20730625,2414.8,2414.1,0.00341054]
[1642896011687,1.20730625,2414.8,2414.4,0.02137209]
[1642896012086,1.20730625,2414.8,2414.5,0.00113685]
[1642896012488,2.45,2414.7,2413.6,1.1737]
[1642896012692,2.45113684,2414.7,2414.0,0.00284212]
[1642896013091,2.45113684,2414.7,2414.4,0.02137209]
[1642896013360,2.45113684,2414.7,2413.9,0.00341054]
[1642896013539,1.4152398,2414.2,2413.9,0.00341054]
[1642896013740,0.00113684,2414.7,2413.9,0.00341054]
[1642896013741,0.07116077,2414.3,2413.9,1.28160648]
[1642896014040,0.07116077,2414.3,2413.9,0.1656]
[1642896014243,0.07116077,2414.3,2414.0,3.52448996]
[1642896014440,0.07116077,2414.3,2413.9,0.1656]
[1642896014643,0.07116077,2414.3,2414.1,0.00227369]
[1642896015041,3.75551037,2414.2,2414.1,0.00227369]
[1642896016244,3.75551037,2414.2,2414.1,0.02364578]
[1642896019500,28.09551037,2414.2,2414.1,0.02364578]
[1642896019701,7.67662074,2414.2,2414.1,0.02364578]
[1642896020103,7.51102074,2414.2,2414.1,0.02364578]
[1642896020951,7.46102074,2414.2,2414.1,0.02364578]
[1642896021842,7.62662074,2414.2,2414.1,0.02364578]
[1642896022940,7.46102074,2414.2,2414.1,0.02364578]
[1642896023344,1.8,2414.1,2413.3,0.01203747]
[1642896023742,7.46102074,2414.2,2413.4,3.52928027]
[1642896023942,7.46102074,2414.2,2413.4,0.00397897]
[1642896024142,7.46102074,2414.2,2413.5,0.00341054]
[1642896024143,31.80102074,2414.2,2413.5,0.00341054]
[1642896024345,25.49296717,2414.0,2413.2,0.00511581]
[1642896024586,25.49296717,2414.0,2412.9,0.0072344]
[1642896024587,2.65,2413.8,2412.9,0.0072344]
[1642896024788,24.34,2413.6,2412.9,0.00173967]
[1642896025000,24.34,2413.6,2412.2,3.47850875]
[1642896025001,24.34,2413.3,2412.2,3.47850875]
[1642896025185,24.34,2413.1,2412.1,0.1868]
[1642896025396,26.99,2412.9,2411.7,0.0072344]
[1642896025595,26.99,2412.9,2410.9,0.1658]
[1642896025596,2.65,2412.7,2410.9,0.1658]
[1642896025805,5.0,2412.2,2410.5,1.55151298]
[1642896025997,5.0,2412.2,2411.0,0.0045895]
[1642896025998,5.0,2411.7,2411.0,0.0045895]
[1642896026203,5.0,2411.2,2409.6,3.10302596]
[1642896026391,3.59635782,2411.1,2409.4,0.0072344]
[1642896026607,5.0,2410.7,2409.7,2.3614852]
[1642896026789,5.0,2410.7,2409.4,0.0072344]
[1642896026790,2.7,2410.5,2409.4,0.0072344]
[1642896026993,2.7,2410.5,2408.7,3.10302596]
[1642896026994,5.0,2409.8,2408.7,3.10302596]
[1642896027198,5.0,2409.8,2408.2,5.16908568]
[1642896027199,24.34,2409.5,2408.1,3.10302596]
[1642896027388,24.34,2409.5,2408.0,3.77923248]
[1642896027389,0.658,2409.4,2408.0,3.77923248]
[1642896027695,2.7,2409.1,2408.0,3.77923248]
[1642896027897,1.43613345,2407.7,2407.3,1.27159613]
[1642896028092,1.43613345,2407.7,2407.2,0.01990259]
[1642896028093,1.03944,2408.6,2408.3,3.76772206]
[1642896028372,0.166,2408.5,2408.3,3.76772206]
[1642896028552,0.166,2409.0,2408.3,3.76772206]
[1642896028752,0.16941054,2409.0,2408.3,3.76772206]
[1642896028954,0.00284212,2408.9,2408.3,3.76772206]
[1642896029152,0.166,2408.8,2408.5,1.40765506]
[1642896029355,0.166,2408.8,2408.5,1.42029588]
[1642896029356,0.00227369,2408.8,2408.5,1.42029588]
[1642896029553,0.166,2410.1,2409.6,1.35510697]
[1642896029854,0.166,2410.1,2409.9,0.01236628]
[1642896030053,0.1658,2410.3,2409.9,0.01236628]
[1642896030251,1.30313316,2410.0,2409.5,0.01207409]
[1642896030452,1.30313316,2410.0,2408.6,0.166]
[1642896030652,0.1658,2410.1,2408.9,0.01259332]
[1642896030858,3.75551037,2410.2,2409.0,0.492]
[1642896031054,0.00909478,2410.0,2409.5,0.01236801]
[1642896031252,3.75551037,2410.2,2409.0,0.08685181]
[1642896031253,0.0096632,2410.1,2409.0,0.08685181]
[1642896031453,0.00852635,2409.9,2408.7,0.01252301]
[1642896031653,0.00909478,2410.0,2409.5,1.17193899]
[1642896031857,1.43782946,2410.1,2409.5,1.17193899]
[1642896031858,0.00795793,2409.8,2409.5,1.17193899]
[1642896032103,0.00852635,2409.9,2409.6,0.1658]
[1642896032392,3.75551037,2410.2,2409.9,0.01692368]
[1642896032589,3.75551037,2410.2,2410.1,4.06397673]
[1642896032790,3.75551037,2410.2,2410.1,4.72177673]
[1642896032990,3.75551037,2410.2,2410.1,6.18121329]
[1642896033189,3.75551037,2410.2,2410.1,3.53121329]
[1642896034291,0.04,2411.0,2410.2,0.64998963]
[1642896034490,0.04,2411.0,2410.7,0.01260917]
[1642896034691,0.00571059,2410.9,2410.8,1.5814085]
[1642896034894,1.059e-05,2410.9,2410.8,5.56526229]
[1642896035093,0.1730344,2412.3,2410.8,5.76225808]
[1642896035294,0.1730344,2412.3,2411.0,0.05459246]
[1642896035295,0.0072344,2412.3,2411.0,0.05459246]
[1642896035492,0.0072344,2412.3,2410.9,0.0008]
[1642896035493,0.0073895,2412.2,2411.1,0.492]
[1642896035694,0.0073895,2412.2,2410.9,0.0008]
[1642896035695,0.1658,2412.1,2410.9,0.0008]
[1642896035938,0.17262108,2412.1,2410.9,0.0008]
[1642896036147,0.00625265,2412.0,2410.9,0.0008]
[1642896036336,0.1658,2411.9,2410.9,0.0008]
[1642896036541,1.41283203,2411.3,2410.9,0.0008]
[1642896036742,0.00511581,2411.8,2410.9,0.0008]
[1642896036937,0.00170527,2411.2,2410.9,0.0008]
[1642896037136,3.70551037,2411.4,2410.9,1.35697523]
[1642896037340,0.00113684,2411.1,2410.9,1.35697523]
[1642896037536,3.70551037,2411.4,2410.9,1.35697523]
[1642896037537,0.00227369,2411.3,2410.9,1.35697523]
[1642896037742,0.62365761,2411.4,2411.1,2.7]
[1642896037938,0.24625761,2411.4,2411.3,4.12405876]
[1642896038138,0.24625761,2411.4,2411.3,5.79389854]
[1642896038338,0.24625761,2411.4,2411.3,2.09389854]
[1642896038744,0.24625761,2411.4,2411.3,3.69389854]
[1642896038939,0.24625761,2411.4,2411.3,3.63343504]
[1642896039139,0.24625761,2411.4,2411.3,3.72028685]
[1642896039339,0.24625761,2411.4,2411.3,0.50403978]
[1642896039591,0.0072344,2412.3,2411.4,2.3]
[1642896039792,0.0072344,2412.3,2411.4,0.492]
[1642896039998,7.369e-05,2411.7,2411.6,2.71237863]
[1642896040197,0.00017369,2412.2,2411.7,2.7]
[1642896040401,0.04,2412.4,2411.7,2.7]
[1642896040402,0.04,2412.4,2412.2,1.15717069]
[1642896040595,0.04,2412.4,2412.3,3.192]
[1642896040796,0.04,2412.4,2412.3,7.23835238]
[1642896040999,0.04,2412.4,2412.3,4.84342385]
[1642896041000,0.04397897,2412.4,2412.3,4.84342385]
[1642896041192,0.04397897,2412.4,2412.3,7.41648658]
[1642896041994,0.04397897,2412.4,2412.3,7.47809224]
[1642896042399,0.1658,2414.1,2412.4,2.7]
[1642896042599,0.07116077,2414.3,2412.8,0.01207775]
[1642896042795,0.00511581,2413.3,2412.9,0.6576]
[1642896043196,0.00454739,2413.2,2413.0,2.73554217]
[1642896043446,0.00454739,2413.2,2413.1,4.69596952]
[1642896043651,1.11401804,2413.6,2413.1,1.4969]
[1642896044054,0.00511581,2413.3,2413.1,0.492]
[1642896044248,0.00511581,2413.3,2413.1,1.992]
[1642896044450,0.00454739,2413.2,2413.1,1.992]
[1642896045047,0.00454739,2413.2,2413.1,0.492]
[1642896045650,4.16575341,2413.2,2413.1,0.492]
[1642896045851,4.33135341,2413.2,2412.5,0.492]
[1642896046252,0.00397896,2413.1,2412.5,0.492]
[1642896046654,0.00341054,2413.0,2412.5,0.492]
[1642896046851,0.00341054,2413.0,2412.7,1.20397798]
[1642896047084,0.00284212,2412.9,2412.7,1.20397798]
[1642896047286,0.00284212,2412.9,2412.5,0.492]
[1642896047287,1.25405164,2412.8,2412.5,0.492]
[1642896047486,1.25632533,2412.8,2412.5,0.492]
[1642896047690,0.00170527,2412.7,2411.8,0.492]
[1642896047887,0.16750527,2412.7,2411.8,0.492]
[1642896048090,0.00113685,2412.6,2411.9,0.00284212]
[1642896048487,1.41268984,2412.4,2412.3,1.40001395]
[1642896048692,2.7,2412.3,2411.7,0.00397897]
[1642896048988,0.03278016,2412.1,2411.0,0.00515793]
[1642896049191,0.1658,2412.0,2411.0,0.00515793]
[1642896049486,0.16689473,2412.1,2411.0,0.00515793]
[1642896049689,1.14665849,2411.8,2411.3,1.53362192]
[1642896049986,1.30945297,2411.6,2411.4,0.00288424]
[1642896051140,1.30945297,2411.6,2411.5,0.00231581]
[1642896051538,1.30945297,2411.6,2411.3,0.00345266]
[1642896051744,2.71275667,2411.6,2411.3,0.00345266]
[1642896052742,0.1658,2411.9,2411.3,0.00345266]
[1642896052943,0.00166315,2412.2,2411.3,0.01593945]
[1642896053143,0.1658,2412.1,2411.3,0.00345266]
[1642896053342,0.00109473,2412.1,2411.4,0.00288424]
[1642896053543,0.00109473,2412.1,2411.3,0.00345266]
[1642896054041,0.00109473,2412.1,2412.0,1.36636414]
[1642896054244,0.00109473,2412.1,2412.0,2.50269075]
[1642896054444,0.04,2414.1,2412.1,2.70186369]
[1642896054445,2.59927926,2413.9,2412.1,2.70186369]
[1642896054688,2.59927926,2413.9,2412.2,0.1656]
[1642896054689,0.1658,2413.9,2412.2,0.1656]
[1642896054888,0.00625266,2413.2,2412.1,3.30946369]
[1642896055188,0.04,2414.1,2412.5,1.12105739]
[1642896055189,1.10583928,2413.1,2412.5,1.12105739]
[1642896055495,0.00511581,2413.0,2412.1,0.6576]
[1642896055891,0.00454739,2412.9,2412.1,0.6576]
[1642896056092,0.00454739,2412.9,2412.6,1.49031459]
[1642896056287,0.210006,2413.0,2412.2,1.2086886]
[1642896056288,0.00397896,2412.8,2412.2,1.2086886]
[1642896056489,0.00397896,2412.8,2412.3,0.1658]
[1642896056690,0.00341054,2412.7,2412.2,1.3742886]
[1642896057091,0.00284212,2412.6,2412.2,1.3742886]
[1642896057287,0.00284212,2412.6,2412.0,0.9576]
[1642896057288,0.1658,2412.5,2412.0,0.9576]
[1642896057490,0.16807369,2412.5,2412.0,0.9576]
[1642896057689,0.00170527,2412.4,2412.0,0.9576]
[1642896057887,0.00170527,2412.4,2412.2,1.18310826]
[1642896058089,0.00113684,2412.3,2412.2,1.18310826]
[1642896058354,0.00113684,2412.3,2412.0,0.9576]
[1642896058355,1.20647641,2412.3,2412.0,0.9576]
[1642896059544,0.00113684,2412.3,2412.1,1.46758739]
[1642896059753,0.00113684,2412.3,2412.2,0.1658]
[1642896060454,0.00113684,2412.3,2412.2,2.8658]
[1642896060944,0.00113684,2412.3,2412.2,2.87747832]
[1642896061146,0.00113684,2412.3,2412.2,2.850993]
[1642896061546,0.00113684,2412.3,2412.2,0.150993]
[1642896062598,0.00113684,2412.3,2412.2,0.01167832]
[1642896062999,0.16693684,2412.3,2412.2,0.01167832]
[1642896063599,0.00113684,2412.3,2412.2,0.01167832]
[1642896064400,1.80113684,2412.3,2412.2,0.01167832]
[1642896065198,0.00113684,2412.3,2412.2,0.01167832]
[1642896065866,0.00113684,2412.3,2412.0,0.96927832]
[1642896066047,0.00113684,2412.3,2411.4,0.1658]
[1642896066048,2.8658,2412.2,2411.4,0.1658]
[1642896066445,1.14472575,2412.1,2411.7,1.45831798]
[1642896066646,1.15177815,2411.6,2411.5,0.00341054]
[1642896066846,1.15177815,2411.6,2411.4,0.1658]
[1642896067654,1.15177815,2411.6,2411.5,1.16532279]
[1642896067847,0.00113684,2412.3,2411.5,1.16532279]
[1642896068249,0.00113684,2412.3,2411.6,0.00284212]
[1642896068651,0.00113684,2412.3,2411.5,0.00341054]
[1642896068849,0.1658,2412.2,2411.3,0.00454739]
[1642896069250,0.1658,2412.2,2411.0,0.00625266]
[1642896069454,24.34,2412.0,2411.0,0.00625266]
[1642896069720,1.22744296,2411.8,2411.0,0.00625266]
[1642896069914,24.5058,2411.7,2411.0,0.00625266]
[1642896070118,24.34,2411.6,2411.0,0.00625266]
[1642896070326,0.00100937,2410.9,2409.5,0.1658]
[1642896070524,0.1658,2410.8,2409.5,0.1658]
[1642896070718,0.00100937,2410.9,2410.0,0.01288876]
[1642896071114,0.00100937,2410.9,2410.1,0.00511581]
[1642896071314,0.00100937,2410.9,2410.5,1.174095]
[1642896071515,0.00100937,2410.9,2410.8,1.13966332]
[1642896071717,0.00100937,2410.9,2410.6,0.00227369]
[1642896071915,0.00100937,2410.9,2410.8,0.00113685]
[1642896072214,0.00100937,2410.9,2410.2,0.00454739]
[1642896072415,0.00100937,2410.9,2410.3,0.1658]
[1642896072821,0.00100937,2410.9,2410.4,0.00341054]
[1642896073016,0.00100937,2410.9,2410.5,0.1658]
[1642896073219,0.00100937,2410.9,2410.6,1.50845978]
[1642896073445,0.00100937,2410.9,2410.6,1.51073347]
[1642896073645,0.00100937,2410.9,2410.7,0.00170527]
[1642896073851,0.00100937,2410.9,2410.7,0.16750527]
[1642896074145,0.00100937,2410.9,2410.8,0.00113685]
[1642896074346,0.00100937,2410.9,2410.8,3.84596955]
[1642896074546,0.00100937,2410.9,2410.8,1.14596955]
[1642896075360,0.00100937,2410.9,2410.8,6.55057145]
[1642896075361,9.37e-06,2410.9,2410.8,6.55057145]
[1642896075548,0.00284212,2411.5,2410.9,24.34]
[1642896075748,4.212e-05,2411.5,2411.4,27.05276557]
[1642896075947,0.0072344,2413.4,2411.4,31.91571427]
[1642896076153,0.0072344,2413.4,2411.9,0.01280039]
[1642896076348,0.00913689,2413.1,2412.0,0.492]
[1642896076553,0.00913689,2413.1,2413.0,1.42824322]
[1642896076753,1.31377943,2413.1,2412.5,1.49297494]
[1642896077195,1.31377943,2413.1,2412.0,0.492]
[1642896077196,0.00856847,2413.0,2412.0,0.492]
[1642896077393,2.7,2412.9,2411.6,1.0]
[1642896077594,2.70800005,2412.9,2411.7,7.68496047]
[1642896077798,0.00743162,2412.8,2411.7,4.1578]
[1642896078196,0.0068632,2412.7,2411.8,3.63908222]
[1642896078398,0.0068632,2412.7,2412.6,1.26168012]
[1642896078596,0.0472344,2413.4,2412.6,1.26168012]
[1642896078795,0.0472344,2413.4,2411.8,1.31266428]
[1642896078796,0.0472344,2413.4,2411.8,2.65194916]
[1642896078998,1.10374047,2412.9,2412.4,1.14472077]
[1642896079196,0.00856847,2413.0,2412.4,1.14472077]
[1642896079197,0.1656,2412.8,2412.4,1.14472077]
[1642896079397,0.00743162,2412.8,2412.4,1.14472077]
[1642896079598,0.0068632,2412.7,2412.4,1.14472077]
[1642896079996,0.00629478,2412.6,2412.4,1.14472077]
[1642896080397,0.1656,2413.3,2412.4,1.14472077]
[1642896080398,0.00572635,2412.5,2412.4,1.14472077]
[1642896081445,0.00572635,2412.5,2412.4,2.66491402]
[1642896081843,0.00572635,2412.5,2412.4,3.26491402]
[1642896082045,0.00572635,2412.5,2412.4,4.26491402]
[1642896082244,0.00572635,2412.5,2412.4,3.26491402]
[1642896082445,0.00572635,2412.5,2412.4,4.26491402]
[1642896083044,0.00572635,2412.5,2412.0,0.01133097]
[1642896083448,0.00515793,2412.4,2412.0,0.01133097]
[1642896083648,0.00515793,2412.4,2412.0,3.51133097]
[1642896083845,1.13919512,2413.1,2412.0,0.01133097]
[1642896083846,0.0045895,2412.3,2412.0,0.01133097]
[1642896084045,0.0045895,2412.3,2412.2,1.43221248]
[1642896084246,1.13919512,2413.1,2412.2,1.43221248]
[1642896084447,1.12822504,2413.0,2412.5,1.15554409]
[1642896084689,1.15323094,2412.7,2412.0,0.01133097]
[1642896085090,0.00629478,2412.6,2412.0,0.01133097]
[1642896085493,1.15323094,2412.7,2412.0,0.01133097]
[1642896085494,0.00572635,2412.5,2412.0,0.01133097]
[1642896085693,0.00572635,2412.5,2412.3,1.11218658]
[1642896085902,0.00515793,2412.4,2412.3,1.11218658]
[1642896087294,0.00515793,2412.4,2412.0,0.1658]
[1642896087498,0.00515793,2412.4,2411.8,0.01129427]
[1642896087695,0.0045895,2412.3,2411.8,0.01129427]
[1642896087998,0.00402108,2412.2,2411.8,0.01129427]
[1642896088444,1.23664428,2412.1,2411.9,1.1778812]
[1642896088642,0.00345266,2412.1,2411.9,1.1778812]
[1642896088840,0.00288423,2412.0,2411.9,1.1778812]
[1642896089241,0.00800005,2412.0,2411.9,1.1778812]
[1642896089642,0.00800005,2412.0,2411.9,2.86265067]
[1642896089844,4.16490676,2413.4,2412.0,2.735698]
[1642896089845,3.25794844,2413.3,2412.0,2.735698]
[1642896090046,0.0472344,2413.4,2412.0,2.735698]
[1642896090047,0.0472344,2413.4,2412.4,0.01245512]
[1642896090244,0.00113684,2413.1,2412.5,0.1656]
[1642896090445,0.00113684,2413.1,2412.5,0.6598737]
[1642896090648,0.00113684,2413.1,2412.6,0.00170527]
[1642896090843,0.00113684,2413.1,2412.8,1.3081793]
[1642896091049,1.41518901,2412.9,2412.6,0.00170527]
[1642896091645,1.41518901,2412.9,2411.9,0.01134933]
[1642896091646,2.8656,2412.8,2411.9,0.01134933]
[1642896091845,2.86673684,2412.8,2411.9,0.01134933]
[1642896092087,2.7,2412.8,2412.0,1.47724001]
[1642896092589,1.27141828,2412.4,2412.1,0.00284212]
[1642896092792,2.7,2412.8,2412.1,0.00284212]
[1642896092793,0.00227369,2413.0,2412.1,0.00284212]
[1642896092988,0.00227369,2413.0,2412.8,1.28359749]
[1642896093193,0.1656,2413.5,2412.9,1.49829473]
[1642896093194,0.0472344,2413.4,2412.9,1.49829473]
[1642896093595,0.00170527,2413.2,2412.9,2.66389473]
[1642896093787,0.00170527,2413.2,2412.9,1.66389473]
[1642896093991,0.0472344,2413.4,2413.0,1.0]
[1642896093992,0.00113684,2413.1,2413.0,1.0]
[1642896094388,0.00113684,2413.1,2412.9,1.49829473]
[1642896094688,0.00113684,2413.1,2412.2,0.1656]
[1642896094896,0.00113684,2413.1,2412.1,0.00284212]
[1642896095091,0.00113684,2413.1,2412.3,0.00341055]
[1642896095291,0.00113684,2413.1,2412.1,0.00454739]
[1642896095490,0.11474728,2412.8,2412.3,1.21940305]
[1642896095845,1.34156421,2412.8,2412.4,0.00284212]
[1642896096246,0.4656,2412.7,2412.1,0.00454739]
[1642896096441,0.1656,2412.7,2412.1,0.00454739]
[1642896096644,0.53238457,2412.7,2411.6,0.00738951]
[1642896096836,1.34156421,2412.8,2411.6,1.14732761]
[1642896096837,2.64767466,2412.1,2411.6,1.14732761]
[1642896097041,3.25794844,2412.9,2411.6,1.14732761]
[1642896097240,0.1658,2412.9,2411.7,0.00682109]
[1642896097439,3.09214844,2412.8,2411.7,0.00682109]
[1642896097641,3.25794844,2412.7,2411.7,0.00682109]
[1642896097843,3.09214844,2412.5,2411.7,0.00682109]
[1642896098043,3.09214844,2412.5,2411.1,0.01023163]
[1642896098044,1.1658,2412.4,2411.1,0.01023163]
[1642896098243,4.25794844,2412.4,2411.0,0.01080005]
[1642896098441,1.1658,2412.4,2411.0,0.01080005]
[1642896098644,1.50422851,2411.5,2411.0,2.67096809]
[1642896099045,1.50422851,2411.5,2411.1,0.01023163]
[1642896099241,1.1148391,2411.6,2411.1,0.01023163]
[1642896099447,1.1658,2412.4,2411.1,0.01023163]
[1642896099693,4.25794844,2412.4,2411.1,0.01023163]
[1642896100090,24.34,2412.3,2411.1,0.01023163]
[1642896100293,0.53258457,2412.2,2411.4,1.32366155]
[1642896100496,0.1658,2412.3,2411.4,1.32366155]
[1642896100701,1.39517302,2411.8,2411.5,0.00795793]
[1642896102294,1.1658,2412.5,2411.5,0.00795793]
[1642896102496,0.1658,2412.5,2411.5,0.00795793]
[1642896102698,0.1658,2412.8,2411.5,2.92479902]
[1642896102898,3.09214844,2412.9,2411.5,2.92479902]
[1642896103096,1.50880844,2412.3,2411.8,1.38765154]
[1642896103360,1.54459788,2412.2,2411.6,0.00738951]
[1642896103554,1.54459788,2412.2,2411.9,0.00568424]
[1642896103751,1.54459788,2412.2,2411.7,0.00682109]
[1642896103952,0.1658,2412.1,2411.3,0.00909478]
[1642896104953,24.5058,2412.1,2411.3,0.00909478]
[1642896105150,1.36678457,2412.0,2411.3,0.00909478]
[1642896105350,1.36678457,2412.0,2410.3,0.00198223]
[1642896105351,24.34,2411.7,2410.3,0.16778223]
[1642896105559,2.02458457,2411.6,2410.4,3.52890986]
[1642896105756,2.02458457,2411.6,2410.4,0.00511581]
[1642896105757,1.03819,2411.5,2410.4,0.00511581]
[1642896105954,24.34,2411.3,2410.4,0.00511581]
[1642896106155,3.29097104,2411.2,2410.2,0.00625266]
[1642896106353,0.3,2411.1,2410.2,0.00625266]
[1642896106553,0.1658,2411.0,2410.2,0.00625266]
[1642896106761,0.1658,2411.0,2409.9,0.00795793]
[1642896106955,1.20427,2411.0,2409.9,0.00795793]
[1642896107204,2.20427,2411.0,2409.9,0.00795793]
[1642896107397,1.56333472,2410.9,2409.9,0.00795793]
[1642896107600,3.55794844,2410.8,2409.9,0.00795793]
[1642896107804,4.97744178,2410.7,2409.9,0.00795793]
[1642896107999,0.1658,2410.6,2409.9,0.00795793]
[1642896108198,0.492,2410.5,2409.9,0.00795793]
[1642896108402,0.1658,2410.4,2409.9,0.00795793]
[1642896108602,0.492,2410.3,2409.9,0.00795793]
[1642896108801,1.46197768,2410.2,2409.9,0.00795793]
[1642896109000,1.95397768,2410.2,2409.9,0.00795793]
[1642896109202,2.95397768,2410.2,2409.9,0.00795793]
[1642896109403,0.43819997,2410.4,2409.9,0.00795793]
[1642896109404,0.13819997,2410.4,2409.9,0.00795793]
[1642896109602,1.0,2410.7,2410.0,1.40236079]
[1642896109799,0.03726883,2411.0,2409.5,0.17603162]
[1642896109998,0.1658,2410.9,2410.1,0.00682108]
[1642896110199,4.07255032,2411.2,2409.4,1.46180885]
[1642896110200,0.1658,2411.1,2409.6,0.0096632]
[1642896110399,0.1658,2411.1,2409.8,1.2317304]
[1642896110400,1.44868215,2410.4,2409.8,1.2317304]
[1642896110599,1.44868215,2410.4,2409.5,0.01023162]
[1642896110847,0.1658,2410.9,2410.1,1.40574174]
[1642896111045,0.31318981,2411.0,2409.9,0.00795793]
[1642896111046,0.31318981,2411.0,2410.6,1.53550564]
[1642896111247,0.13819996,2411.2,2410.2,0.00625266]
[1642896111448,0.13819996,2411.2,2410.7,0.00341054]
[1642896111651,0.13819996,2411.2,2410.0,0.0073895]
[1642896111845,0.1658,2411.1,2410.0,0.0073895]
[1642896112054,0.6578,2411.1,2410.0,0.0073895]
[1642896112246,0.6578,2411.1,2409.6,0.0096632]
[1642896112445,1.29634428,2410.2,2409.6,1.38522514]
[1642896112647,24.34,2411.0,2409.6,1.38522514]
[1642896112845,0.1658,2410.9,2409.7,2.42356568]
[1642896113244,0.1658,2410.9,2409.8,0.00852635]
[1642896113445,0.492,2411.1,2409.8,0.00852635]
[1642896113446,0.6578,2411.1,2409.8,0.00852635]
[1642896113647,0.6578,2411.1,2410.6,1.33064782]
[1642896113847,0.13819996,2411.2,2410.7,1.21852717]
[1642896114047,0.13819996,2411.2,2410.7,0.00341054]
[1642896114245,0.13819996,2411.2,2410.8,0.00284212]
[1642896114449,0.13819996,2411.2,2410.7,0.00341054]
[1642896114904,0.30399996,2411.2,2410.7,0.00341054]
[1642896115205,0.30399996,2411.2,2410.3,1.20437247]
[1642896115206,0.60399996,2411.2,2410.3,1.20437247]
[1642896115503,0.60399996,2411.2,2410.2,0.00625266]
[1642896115901,0.13819996,2411.2,2410.5,1.3071903]
[1642896116397,0.13819996,2411.2,2410.9,1.14624886]
[1642896116596,0.00113685,2411.5,2410.9,1.14624886]
[1642896116794,0.00113685,2411.5,2411.0,0.00170527]
[1642896117000,0.00113685,2411.5,2411.1,1.59526285]
[1642896117993,0.00113685,2411.5,2411.4,1.12470108]
[1642896118204,0.00113685,2411.5,2411.1,1.59526285]
[1642896118440,0.00113685,2411.5,2411.0,1.00170527]
[1642896118641,0.00113685,2411.5,2411.0,0.00170527]
[1642896118838,0.00113685,2411.5,2411.1,0.00113685]
[1642896119038,0.00113685,2411.5,2410.8,0.1658]
[1642896119039,0.00113685,2411.5,2410.9,0.00227369]
[1642896119241,0.00113685,2411.5,2411.3,1.09923079]
[1642896119539,0.1658,2412.3,2411.5,0.00205738]
[1642896119744,0.492,2412.6,2411.5,0.00205738]
[1642896119745,1.1658,2412.5,2411.5,0.00205738]
[1642896119940,0.00227369,2411.9,2411.5,0.00205738]
[1642896120338,0.00170527,2411.8,2411.5,0.00205738]
[1642896120742,0.00113684,2411.7,2411.5,0.00205738]
[1642896121840,1.38535119,2411.6,2411.5,0.00205738]
[1642896122102,1.33676498,2411.6,2411.5,0.00205738]
[1642896122494,0.00113684,2411.7,2411.5,0.00205738]
[1642896123297,0.00113684,2411.7,2411.6,1.0901501]
[1642896123495,0.00113684,2411.7,2411.6,2.60036318]
[1642896123696,0.00113684,2411.7,2411.5,0.00205738]
[1642896123897,0.00113684,2411.7,2411.5,5.738e-05]
[1642896124098,27.2058,2411.6,2411.5,5.738e-05]
[1642896124297,27.96252713,2411.6,2411.5,5.738e-05]
[1642896124496,29.30037452,2411.6,2411.5,5.738e-05]
[1642896124716,24.34,2411.4,2410.9,0.00227369]
[1642896124905,2.03233459,2411.3,2410.9,0.00227369]
[1642896125098,2.16653459,2411.3,2410.7,0.00454739]
[1642896125297,0.07834885,2410.4,2410.1,0.00795793]
[1642896125498,0.1658,2411.2,2410.1,0.00795793]
[1642896125699,0.492,2411.1,2410.1,0.00795793]
[1642896125951,0.1658,2411.0,2409.6,0.01080005]
[1642896126155,0.492,2410.9,2409.6,0.01080005]
[1642896126451,0.492,2410.9,2409.4,0.0072344]
[1642896126452,24.34,2410.7,2409.5,0.01136847]
[1642896126650,24.34,2410.5,2409.5,0.01136847]
[1642896126853,5.86404292,2410.4,2409.5,0.01136847]
[1642896127049,5.86404292,2410.4,2409.2,1.258]
[1642896127050,2.7,2410.2,2409.2,1.258]
[1642896127253,0.88172747,2409.3,2409.2,1.258]
[1642896127751,0.492,2409.4,2409.2,1.258]
[1642896127951,0.658,2409.7,2409.2,1.258]
[1642896128153,0.00113684,2409.7,2409.3,0.00113685]
[1642896128756,2.7,2409.6,2409.2,3.685e-05]
[1642896128955,0.492,2409.5,2409.2,3.685e-05]
[1642896129151,1.49313685,2409.5,2409.2,3.685e-05]
[1642896129451,0.49313685,2409.5,2409.2,3.685e-05]
[1642896129699,1.49313685,2409.5,2409.2,3.685e-05]
[1642896129902,2.7,2409.4,2408.3,3.77495646]
[1642896130099,1.79619997,2409.3,2408.3,3.77495646]
[1642896130294,24.47819996,2409.2,2408.4,0.00511581]
[1642896130501,0.658,2409.1,2408.4,0.00511581]
[1642896130698,1.658,2409.1,2408.4,0.00511581]
[1642896130899,1.43545774,2408.8,2408.4,0.00511581]
[1642896131196,1.43545774,2408.8,2408.3,7.227e-05]